[Event "Championnat d'Europe de Blitz"]
[Date "2024.12.09"]
[White "Alonso Rosell, Alvar"]
[Black "Gavrilescu, David"]
[WhiteElo "2532"]
[BlackElo "2549"]
[Round "12.18"]
[Result "1-0"]
[TimeControl "180+2"]

1. d4 {[%emt 00:00:03] [%clk 00:03:03]} d5 {[%clk 00:03:02]} 2. Nf3 {[%emt
00:00:02] [%clk 00:03:04]} Nf6 {[%emt 00:00:01] [%clk 00:03:03]} 3. e3 {[%emt
00:00:01] [%clk 00:03:04]} c5 {[%emt 00:00:02] [%clk 00:03:02]} 4. Nbd2 {[%emt
00:00:02] [%clk 00:03:05]} cxd4 {[%emt 00:00:08] [%clk 00:02:57]} 5. exd4 {[%clk
00:03:06]} Nc6 {[%emt 00:00:01] [%clk 00:02:57]} 6. Bb5 {[%emt 00:00:06] [%clk
00:03:01]} Bg4 {[%emt 00:00:11] [%clk 00:02:49]} 7. h3 {[%emt 00:00:07] [%clk
00:02:56]} Bh5 {[%emt 00:00:02] [%clk 00:02:50]} 8. g4 {[%emt 00:00:04] [%clk
00:02:53]} Bg6 {[%emt 00:00:01] [%clk 00:02:51]} 9. Ne5 {[%emt 00:00:02] [%clk
00:02:54]} Qb6 {[%emt 00:00:08] [%clk 00:02:45]} 10. Bxc6+ {[%emt 00:00:19]
[%clk 00:02:36]} bxc6 {[%emt 00:00:02] [%clk 00:02:45]} 11. c3 {[%emt 00:00:01]
[%clk 00:02:37]} e6 {[%emt 00:00:46] [%clk 00:02:02]} 12. h4 {[%emt 00:00:04]
[%clk 00:02:34]} Nd7 {[%emt 00:00:25] [%clk 00:01:39]} 13. Nxd7 {[%emt 00:00:13]
[%clk 00:02:23]} Kxd7 {[%emt 00:00:01] [%clk 00:01:40]} 14. h5 {[%emt 00:00:04]
[%clk 00:02:21]} Bd3 {[%emt 00:00:03] [%clk 00:01:39]} 15. Qf3 {[%emt 00:00:04]
[%clk 00:02:18]} Ba6 {[%emt 00:00:26] [%clk 00:01:17]} 16. Qxf7+ {[%emt
00:00:03] [%clk 00:02:17]} Be7 {[%emt 00:00:01] [%clk 00:01:17]} 17. Nf3 {[%emt
00:00:53] [%clk 00:01:26]} Raf8 {[%emt 00:00:14] [%clk 00:01:06]} 18. Ne5+
{[%emt 00:00:06] [%clk 00:01:21]} Kd6 {[%emt 00:00:05] [%clk 00:01:03]} 19. Qxg7
{[%emt 00:00:05] [%clk 00:01:19]} Qb5 {[%emt 00:00:21] [%clk 00:00:44]} 20. c4
{[%emt 00:00:02] [%clk 00:01:18]} dxc4 {[%emt 00:00:02] [%clk 00:00:44]} 21. Bg5
{[%emt 00:00:43] [%clk 00:00:37]} Qb4+ {[%emt 00:00:35] [%clk 00:00:12]} 22. Kd1
{[%clk 00:00:38]} Qb7 {[%emt 00:00:06] [%clk 00:00:08]} 23. Bxe7+ {[%emt
00:00:23] [%clk 00:00:17]} Qxe7 {[%emt 00:00:02] [%clk 00:00:08]} 24. Qxe7+
{[%emt 00:00:13] [%clk 00:00:06]} Kxe7 {[%emt 00:00:02] [%clk 00:00:09]} 25. Ke1
{[%emt 00:00:02] [%clk 00:00:05]} Kd6 {[%emt 00:00:04] [%clk 00:00:08]} 26. Rh3
{[%emt 00:00:02] [%clk 00:00:05]} Rf4 {[%emt 00:00:03] [%clk 00:00:07]} 27. Ra3
{[%emt 00:00:04] [%clk 00:00:03]} Bb7 {[%emt 00:00:05] [%clk 00:00:03]} 28. Rxa7
{[%emt 00:00:02] [%clk 00:00:03]} Rb8 {[%emt 00:00:01] [%clk 00:00:04]} 29. Rd1
{[%emt 00:00:02] [%clk 00:00:04]} c5 {[%emt 00:00:01] [%clk 00:00:05]} 30. Nxc4+
{[%emt 00:00:01] [%clk 00:00:04]} Kc7 {[%emt 00:00:02] [%clk 00:00:06]} 31. Na5
{[%emt 00:00:02] [%clk 00:00:04]} cxd4 {[%emt 00:00:01] [%clk 00:00:06]} 32.
Nxb7 {[%emt 00:00:03] [%clk 00:00:03]} Rxb7 {[%emt 00:00:02] [%clk 00:00:06]}
33. Rxb7+ {[%emt 00:00:01] [%clk 00:00:04]} Kxb7 {[%clk 00:00:07]} 34. f3 {[%clk
00:00:06]} e5 {[%emt 00:00:03] [%clk 00:00:06]} 35. Ke2 {[%emt 00:00:03] [%clk
00:00:04]} e4 {[%emt 00:00:01] [%clk 00:00:07]} 36. fxe4 {[%emt 00:00:01] [%clk
00:00:05]} Rxe4+ {[%emt 00:00:03] [%clk 00:00:07]} 37. Kf3 {[%clk 00:00:07]}
Re3+ {[%emt 00:00:04] [%clk 00:00:05]} 38. Kf4 {[%emt 00:00:01] [%clk 00:00:07]}
Re2 {[%emt 00:00:01] [%clk 00:00:06]} 39. Rxd4 {[%emt 00:00:02] [%clk 00:00:08]}
1-0

[Site "Europe Echecs"]

[Event "Championnat d'Europe de Blitz"]
[Date "2024.12.09"]
[White "Samunenkov, Ihor"]
[Black "Van Foreest, Lucas"]
[WhiteElo "2543"]
[BlackElo "2520"]
[Round "12.19"]
[Result "0-1"]
[TimeControl "180+2"]

1. d4 {[%emt 00:00:01] [%clk 00:03:02]} d5 {[%clk 00:03:04]} 2. c4 {[%emt
00:00:02] [%clk 00:03:02]} e6 {[%emt 00:00:02] [%clk 00:03:04]} 3. Nf3 {[%emt
00:00:04] [%clk 00:03:00]} Nf6 {[%emt 00:00:01] [%clk 00:03:05]} 4. g3 {[%emt
00:00:01] [%clk 00:03:01]} Bb4+ {[%emt 00:00:02] [%clk 00:03:05]} 5. Bd2 {[%emt
00:00:02] [%clk 00:03:01]} Be7 {[%emt 00:00:01] [%clk 00:03:05]} 6. Bg2 {[%emt
00:00:02] [%clk 00:03:01]} O-O {[%emt 00:00:02] [%clk 00:03:06]} 7. O-O {[%emt
00:00:02] [%clk 00:03:01]} Nbd7 {[%emt 00:00:01] [%clk 00:03:07]} 8. Qc2 {[%emt
00:00:01] [%clk 00:03:01]} c6 {[%clk 00:03:08]} 9. Bf4 {[%emt 00:00:01] [%clk
00:03:02]} h6 {[%emt 00:00:02] [%clk 00:03:09]} 10. Rd1 {[%emt 00:00:10] [%clk
00:02:53]} a5 {[%emt 00:00:02] [%clk 00:03:10]} 11. a3 {[%emt 00:00:13] [%clk
00:02:41]} a4 {[%emt 00:00:02] [%clk 00:03:11]} 12. Nc3 {[%emt 00:00:35] [%clk
00:02:08]} Qa5 {[%emt 00:00:01] [%clk 00:03:12]} 13. Ne5 {[%emt 00:00:17] [%clk
00:01:53]} Qa6 {[%emt 00:00:02] [%clk 00:03:12]} 14. cxd5 {[%emt 00:00:09] [%clk
00:01:45]} exd5 {[%emt 00:00:02] [%clk 00:03:13]} 15. Nd3 {[%emt 00:00:10] [%clk
00:01:37]} Nb6 {[%emt 00:00:04] [%clk 00:03:10]} 16. Nc5 {[%emt 00:00:05] [%clk
00:01:34]} Qa5 {[%emt 00:00:02] [%clk 00:03:10]} 17. Bd2 {[%emt 00:00:11] [%clk
00:01:26]} Qa7 {[%emt 00:00:12] [%clk 00:03:00]} 18. h3 {[%emt 00:00:06] [%clk
00:01:22]} Re8 {[%emt 00:00:01] [%clk 00:03:00]} 19. Rac1 {[%emt 00:00:07] [%clk
00:01:18]} Nfd7 {[%emt 00:00:03] [%clk 00:02:59]} 20. Nxd7 {[%emt 00:00:17]
[%clk 00:01:03]} Bxd7 {[%emt 00:00:01] [%clk 00:02:59]} 21. Na2 {[%emt 00:00:03]
[%clk 00:01:03]} Nc4 {[%emt 00:00:05] [%clk 00:02:56]} 22. Bb4 {[%emt 00:00:02]
[%clk 00:01:03]} Bg5 {[%emt 00:00:01] [%clk 00:02:56]} 23. e3 {[%emt 00:00:07]
[%clk 00:00:58]} g6 {[%emt 00:00:01] [%clk 00:02:57]} 24. h4 {[%emt 00:00:05]
[%clk 00:00:56]} Bf5 {[%emt 00:00:01] [%clk 00:02:56]} 25. Qe2 {[%emt 00:00:15]
[%clk 00:00:44]} Bf6 {[%emt 00:00:03] [%clk 00:02:55]} 26. Nc3 {[%emt 00:00:06]
[%clk 00:00:41]} h5 {[%emt 00:00:02] [%clk 00:02:54]} 27. Bxd5 {[%emt 00:00:10]
[%clk 00:00:33]} Bg4 {[%emt 00:00:47] [%clk 00:02:09]} 28. Bxf7+ {[%emt
00:00:07] [%clk 00:00:28]} Kxf7 {[%emt 00:00:04] [%clk 00:02:07]} 29. Qxc4+
{[%emt 00:00:02] [%clk 00:00:29]} Kg7 {[%clk 00:02:09]} 30. Re1 {[%emt 00:00:03]
[%clk 00:00:28]} Rad8 {[%emt 00:00:02] [%clk 00:02:08]} 31. d5 {[%emt 00:00:04]
[%clk 00:00:27]} Bf3 {[%emt 00:00:21] [%clk 00:01:49]} 32. Bc5 {[%emt 00:00:05]
[%clk 00:00:24]} Qb8 {[%emt 00:00:03] [%clk 00:01:47]} 33. Bd4 {[%emt 00:00:05]
[%clk 00:00:22]} Bxd5 {[%emt 00:00:08] [%clk 00:01:41]} 34. Bxf6+ {[%emt
00:00:02] [%clk 00:00:22]} Kxf6 {[%emt 00:00:01] [%clk 00:01:42]} 35. Nxd5+
{[%emt 00:00:02] [%clk 00:00:22]} Rxd5 {[%emt 00:00:02] [%clk 00:01:42]} 36.
Qxa4 {[%emt 00:00:02] [%clk 00:00:22]} Qe5 {[%clk 00:01:43]} 37. Qb4 {[%emt
00:00:07] [%clk 00:00:18]} Rb5 {[%emt 00:00:01] [%clk 00:01:44]} 38. Qc4 {[%emt
00:00:06] [%clk 00:00:14]} Rxb2 {[%emt 00:00:03] [%clk 00:01:44]} 39. Rb1 {[%emt
00:00:01] [%clk 00:00:15]} Rd8 {[%emt 00:00:03] [%clk 00:01:42]} 40. Rxb2 {[%emt
00:00:07] [%clk 00:00:10]} Qxb2 {[%clk 00:01:43]} 41. Qf4+ {[%emt 00:00:01]
[%clk 00:00:11]} Ke6 {[%emt 00:00:01] [%clk 00:01:44]} 42. Qe4+ {[%emt 00:00:01]
[%clk 00:00:11]} Kf6 {[%emt 00:00:02] [%clk 00:01:45]} 43. Qf4+ {[%emt 00:00:01]
[%clk 00:00:12]} Ke6 {[%clk 00:01:46]} 44. e4 {[%emt 00:00:04] [%clk 00:00:09]}
Qxa3 {[%emt 00:00:14] [%clk 00:01:35]} 45. e5 {[%emt 00:00:01] [%clk 00:00:10]}
Rf8 {[%clk 00:01:36]} 46. Qc4+ {[%emt 00:00:02] [%clk 00:00:10]} Ke7 {[%clk
00:01:38]} 47. Rb1 {[%emt 00:00:03] [%clk 00:00:09]} Qa7 {[%emt 00:00:05] [%clk
00:01:34]} 48. Qb4+ {[%emt 00:00:03] [%clk 00:00:08]} Ke8 {[%emt 00:00:01] [%clk
00:01:35]} 49. Rb2 {[%emt 00:00:03] [%clk 00:00:09]} Rf5 {[%emt 00:00:11] [%clk
00:01:25]} 50. Qd6 {[%emt 00:00:01] [%clk 00:00:09]} Qa1+ {[%emt 00:00:01] [%clk
00:01:26]} 51. Kg2 {[%emt 00:00:06] [%clk 00:00:06]} Qxb2 {[%emt 00:00:01] [%clk
00:01:27]} 52. Qxg6+ {[%emt 00:00:02] [%clk 00:00:06]} Rf7 {[%clk 00:01:28]} 53.
e6 {[%emt 00:00:04] [%clk 00:00:05]} Qxf2+ {[%emt 00:00:02] [%clk 00:01:29]} 54.
Kh1 {[%clk 00:00:06]} Qf1+ {[%emt 00:00:15] [%clk 00:01:16]} 55. Kh2 {[%emt
00:00:01] [%clk 00:00:07]} Qe2+ {[%clk 00:01:17]} 56. Kh1 {[%emt 00:00:03] [%clk
00:00:06]} Qe1+ {[%emt 00:00:12] [%clk 00:01:07]} 57. Kh2 {[%emt 00:00:01] [%clk
00:00:07]} Qf2+ {[%emt 00:00:01] [%clk 00:01:08]} 58. Kh1 {[%clk 00:00:08]} Ke7
{[%emt 00:00:01] [%clk 00:01:09]} 59. exf7 {[%emt 00:00:02] [%clk 00:00:08]}
Qxf7 {[%emt 00:00:01] [%clk 00:01:10]} 60. Qg5+ {[%emt 00:00:01] [%clk
00:00:08]} Kd7 {[%clk 00:01:12]} 61. Kh2 {[%emt 00:00:05] [%clk 00:00:05]} Qa2+
{[%emt 00:00:01] [%clk 00:01:13]} 62. Kh3 {[%emt 00:00:03] [%clk 00:00:04]} Qe6+
{[%emt 00:00:01] [%clk 00:01:14]} 63. Kh2 {[%emt 00:00:01] [%clk 00:00:05]} Qe2+
{[%clk 00:01:15]} 64. Kg1 {[%emt 00:00:02] [%clk 00:00:06]} b5 {[%emt 00:00:02]
[%clk 00:01:14]} 65. Qg7+ {[%emt 00:00:02] [%clk 00:00:06]} Kd6 {[%emt 00:00:02]
[%clk 00:01:15]} 66. Qd4+ {[%emt 00:00:01] [%clk 00:00:06]} Ke6 {[%clk
00:01:16]} 67. Qc5 {[%emt 00:00:03] [%clk 00:00:06]} Qd1+ {[%emt 00:00:06] [%clk
00:01:12]} 68. Kh2 {[%emt 00:00:01] [%clk 00:00:07]} Qd5 {[%emt 00:00:03] [%clk
00:01:11]} 69. Qe3+ {[%emt 00:00:01] [%clk 00:00:08]} Kd6 {[%emt 00:00:01] [%clk
00:01:12]} 70. Qh6+ {[%emt 00:00:02] [%clk 00:00:07]} Kc5 {[%emt 00:00:02] [%clk
00:01:13]} 71. Qe3+ {[%emt 00:00:01] [%clk 00:00:08]} Kb4 {[%emt 00:00:04] [%clk
00:01:12]} 72. Qe1+ {[%emt 00:00:01] [%clk 00:00:08]} Ka4 {[%emt 00:00:13] [%clk
00:01:00]} 73. Qa1+ {[%emt 00:00:01] [%clk 00:00:09]} Kb3 {[%clk 00:01:02]} 74.
Qb1+ {[%emt 00:00:02] [%clk 00:00:10]} Kc3 {[%emt 00:00:02] [%clk 00:01:02]} 75.
Qc1+ {[%clk 00:00:10]} Kd4 {[%emt 00:00:01] [%clk 00:01:03]} 76. Qd2+ {[%emt
00:00:02] [%clk 00:00:10]} Ke5 {[%clk 00:01:04]} 77. Qg5+ {[%emt 00:00:03] [%clk
00:00:09]} Kd6 {[%emt 00:00:01] [%clk 00:01:05]} 78. Qf4+ {[%emt 00:00:04] [%clk
00:00:07]} Kd7 {[%emt 00:00:01] [%clk 00:01:06]} 79. g4 {[%emt 00:00:04] [%clk
00:00:05]} Qd6 {[%emt 00:00:18]} 80. Qxd6+ {[%emt 00:00:02] [%clk 00:00:04]}
Kxd6 {[%emt 00:00:01] [%clk 00:00:52]} 81. gxh5 {[%emt 00:00:02] [%clk
00:00:03]} Ke5 {[%emt 00:00:05] [%clk 00:03:02]} 0-1

[Site "Europe Echecs"]

[Event "Championnat d'Europe de Blitz"]
[Date "2024.12.09"]
[White "Djukic, Nikola"]
[Black "Costachi, Mihnea"]
[WhiteElo "2493"]
[BlackElo "2464"]
[Round "12.20"]
[Result "0-1"]
[TimeControl "180+2"]

1. e4 {[%clk 00:03:02]} e5 {[%emt 00:00:02] [%clk 00:03:03]} 2. Nf3 {[%emt
00:00:01] [%clk 00:03:02]} Nc6 {[%emt 00:00:02] [%clk 00:03:04]} 3. Bb5 {[%emt
00:00:01] [%clk 00:03:03]} a6 {[%emt 00:00:02] [%clk 00:03:05]} 4. Ba4 {[%emt
00:00:01] [%clk 00:03:04]} d6 {[%clk 00:03:06]} 5. c3 {[%emt 00:00:06] [%clk
00:03:00]} Bd7 {[%emt 00:00:01] [%clk 00:03:06]} 6. d4 {[%emt 00:00:02] [%clk
00:03:00]} g6 {[%emt 00:00:01] [%clk 00:03:07]} 7. O-O {[%emt 00:00:03] [%clk
00:03:00]} Bg7 {[%emt 00:00:01] [%clk 00:03:07]} 8. Re1 {[%emt 00:00:02] [%clk
00:03:00]} Nf6 {[%emt 00:00:02] [%clk 00:03:08]} 9. h3 {[%emt 00:00:06] [%clk
00:02:55]} O-O {[%emt 00:00:03] [%clk 00:03:08]} 10. Bc2 {[%emt 00:00:01] [%clk
00:02:56]} Re8 {[%emt 00:00:11] [%clk 00:02:59]} 11. Nbd2 {[%emt 00:00:01] [%clk
00:02:56]} Nh5 {[%emt 00:00:07] [%clk 00:02:54]} 12. Nf1 {[%emt 00:00:01] [%clk
00:02:57]} Nf4 {[%emt 00:00:14] [%clk 00:02:43]} 13. Be3 {[%emt 00:00:16] [%clk
00:02:42]} Qf6 {[%emt 00:00:17] [%clk 00:02:28]} 14. N1h2 {[%clk 00:02:43]} Rad8
{[%emt 00:00:17] [%clk 00:02:14]} 15. Qd2 {[%emt 00:00:25] [%clk 00:02:19]} g5
{[%emt 00:00:19] [%clk 00:01:58]} 16. Kh1 {[%emt 00:00:29] [%clk 00:01:51]} h5
{[%emt 00:00:04] [%clk 00:01:56]} 17. d5 {[%emt 00:00:18] [%clk 00:01:36]} Ne7
{[%emt 00:00:25] [%clk 00:01:32]} 18. Ng1 {[%emt 00:00:05] [%clk 00:01:32]} Neg6
{[%emt 00:00:06] [%clk 00:01:29]} 19. g3 {[%emt 00:00:07] [%clk 00:01:27]} Bh6
{[%emt 00:00:12] [%clk 00:01:20]} 20. Qd1 {[%emt 00:00:03] [%clk 00:01:26]} Kg7
{[%emt 00:00:24] [%clk 00:00:58]} 21. gxf4 {[%emt 00:00:02] [%clk 00:01:25]}
gxf4 {[%emt 00:00:03] [%clk 00:00:57]} 22. Bd2 {[%clk 00:01:26]} Rh8 {[%emt
00:00:07] [%clk 00:00:53]} 23. Qe2 {[%emt 00:00:18] [%clk 00:01:10]} Rdg8 {[%emt
00:00:01] [%clk 00:00:54]} 24. f3 {[%emt 00:00:29] [%clk 00:00:43]} Kf8 {[%emt
00:00:06] [%clk 00:00:50]} 25. Rf1 {[%emt 00:00:02] [%clk 00:00:42]} Nh4 {[%emt
00:00:08] [%clk 00:00:43]} 26. Be1 {[%emt 00:00:10] [%clk 00:00:34]} Rg3 {[%emt
00:00:07] [%clk 00:00:38]} 27. Qf2 {[%emt 00:00:20] [%clk 00:00:16]} Rhg8 {[%emt
00:00:04] [%clk 00:00:36]} 28. Bd3 {[%emt 00:00:01] [%clk 00:00:17]} Rxh3 {[%emt
00:00:21] [%clk 00:00:17]} 29. Nxh3 {[%emt 00:00:06] [%clk 00:00:13]} Bxh3
{[%emt 00:00:01] [%clk 00:00:18]} 30. Qxh4 {[%clk 00:00:14]} Bg2+ {[%emt
00:00:02] [%clk 00:00:19]} 31. Kg1 {[%emt 00:00:01] [%clk 00:00:15]} Bxf3+
{[%emt 00:00:02] [%clk 00:00:19]} 0-1

[Site "Europe Echecs"]

[Event "Championnat d'Europe de Blitz"]
[Date "2024.12.09"]
[White "Schneider, Ilja"]
[Black "Mastrovasilis, Dimitrios"]
[WhiteElo "2414"]
[BlackElo "2537"]
[Round "12.21"]
[Result "0-1"]
[TimeControl "180+2"]

1. e4 {[%emt 00:14:47] [%clk 00:03:02]} c5 {[%emt 00:00:03] [%clk 00:03:02]} 2.
Nc3 {[%emt 00:00:01] [%clk 00:03:03]} a6 {[%emt 00:00:01] [%clk 00:03:02]} 3. g3
{[%emt 00:00:01] [%clk 00:03:04]} b5 {[%emt 00:00:02] [%clk 00:03:02]} 4. Bg2
{[%emt 00:00:01] [%clk 00:03:05]} Bb7 {[%emt 00:00:01] [%clk 00:03:03]} 5. Nge2
{[%emt 00:00:01] [%clk 00:03:06]} e6 {[%emt 00:00:05] [%clk 00:03:01]} 6. d4
{[%emt 00:00:01] [%clk 00:03:07]} cxd4 {[%emt 00:00:06] [%clk 00:02:57]} 7. Nxd4
{[%clk 00:03:08]} Nf6 {[%emt 00:00:01] [%clk 00:02:57]} 8. O-O {[%emt 00:00:02]
[%clk 00:03:08]} b4 {[%emt 00:00:02] [%clk 00:02:58]} 9. Na4 {[%emt 00:00:01]
[%clk 00:03:09]} Bxe4 {[%emt 00:00:06] [%clk 00:02:53]} 10. Bxe4 {[%clk
00:03:10]} Nxe4 {[%emt 00:00:01] [%clk 00:02:54]} 11. Re1 {[%clk 00:03:11]} Nc5
{[%emt 00:00:08] [%clk 00:02:48]} 12. c3 {[%clk 00:03:12]} Nxa4 {[%emt 00:00:14]
[%clk 00:02:36]} 13. Qxa4 {[%clk 00:03:13]} Qb6 {[%emt 00:00:02] [%clk
00:02:37]} 14. Qd1 {[%emt 00:00:02] [%clk 00:03:13]} Nc6 {[%emt 00:00:06] [%clk
00:02:32]} 15. Be3 {[%emt 00:00:41] [%clk 00:02:34]} Nxd4 {[%emt 00:00:06] [%clk
00:02:28]} 16. Bxd4 {[%emt 00:00:01] [%clk 00:02:35]} Bc5 {[%emt 00:00:01] [%clk
00:02:29]} 17. Bxc5 {[%emt 00:00:35] [%clk 00:02:03]} Qxc5 {[%emt 00:00:02]
[%clk 00:02:29]} 18. Qg4 {[%emt 00:00:07] [%clk 00:01:57]} O-O {[%emt 00:00:16]
[%clk 00:02:15]} 19. cxb4 {[%emt 00:00:06] [%clk 00:01:53]} Qb6 {[%emt 00:00:08]
[%clk 00:02:09]} 20. Rec1 {[%emt 00:00:12] [%clk 00:01:44]} d5 {[%emt 00:00:12]
[%clk 00:01:59]} 21. a3 {[%emt 00:00:25] [%clk 00:01:20]} d4 {[%emt 00:00:06]
[%clk 00:01:55]} 22. Qe4 {[%emt 00:00:03] [%clk 00:01:19]} Rad8 {[%emt 00:00:07]
[%clk 00:01:50]} 23. Rc6 {[%emt 00:00:10] [%clk 00:01:11]} Qb5 {[%emt 00:00:04]
[%clk 00:01:48]} 24. Rc5 {[%emt 00:00:04] [%clk 00:01:09]} Qd7 {[%emt 00:00:08]
[%clk 00:01:42]} 25. Rd1 {[%emt 00:00:06] [%clk 00:01:05]} Rfe8 {[%emt 00:00:23]
[%clk 00:01:22]} 26. Qc6 {[%emt 00:00:16] [%clk 00:00:51]} Qe7 {[%emt 00:00:02]
[%clk 00:01:22]} 27. Qxa6 {[%emt 00:00:02] [%clk 00:00:51]} e5 {[%clk 00:01:23]}
28. Qc4 {[%emt 00:00:02] [%clk 00:00:50]} h5 {[%emt 00:00:13] [%clk 00:01:13]}
29. h4 {[%emt 00:00:10] [%clk 00:00:42]} Qf6 {[%emt 00:00:13] [%clk 00:01:01]}
30. Rc6 {[%emt 00:00:29] [%clk 00:00:16]} Qf3 {[%emt 00:00:05] [%clk 00:00:57]}
31. Qd3 {[%emt 00:00:02] [%clk 00:00:16]} Qxc6 {[%emt 00:00:02] [%clk 00:00:52]}
0-1

[Site "Europe Echecs"]

[Event "Championnat d'Europe de Blitz"]
[Date "2024.12.09"]
[White "Zajic, Milan"]
[Black "Kozul, Zdenko"]
[WhiteElo "2392"]
[BlackElo "2519"]
[Round "12.22"]
[Result "0-1"]
[TimeControl "180+2"]

1. e4 {[%emt 00:14:39] [%clk 00:03:03]} c5 {[%clk 00:03:03]} 2. Nf3 {[%emt
00:00:01] [%clk 00:03:03]} d6 {[%emt 00:00:01] [%clk 00:03:04]} 3. Bb5+ {[%emt
00:00:02] [%clk 00:03:03]} Bd7 {[%emt 00:00:01] [%clk 00:03:05]} 4. a4 {[%emt
00:00:01] [%clk 00:03:04]} Nf6 {[%emt 00:00:02] [%clk 00:03:06]} 5. d3 {[%emt
00:00:01] [%clk 00:03:05]} e6 {[%emt 00:00:16] [%clk 00:02:52]} 6. O-O {[%emt
00:00:03] [%clk 00:03:04]} Be7 {[%emt 00:00:05] [%clk 00:02:49]} 7. e5 {[%emt
00:00:01] [%clk 00:03:04]} dxe5 {[%emt 00:00:03] [%clk 00:02:49]} 8. Nxe5 {[%emt
00:00:01] [%clk 00:03:05]} a6 {[%emt 00:00:27] [%clk 00:02:24]} 9. Bxd7+ {[%emt
00:00:11] [%clk 00:02:56]} Nfxd7 {[%emt 00:00:09] [%clk 00:02:17]} 10. Nxd7
{[%emt 00:00:04] [%clk 00:02:54]} Qxd7 {[%emt 00:00:02] [%clk 00:02:17]} 11. a5
{[%emt 00:00:03] [%clk 00:02:53]} Nc6 {[%emt 00:00:02] [%clk 00:02:18]} 12. Nd2
{[%emt 00:00:02] [%clk 00:02:52]} O-O {[%emt 00:00:14] [%clk 00:02:05]} 13. Nc4
{[%emt 00:00:02] [%clk 00:02:51]} Rad8 {[%emt 00:00:13] [%clk 00:01:55]} 14. Bd2
{[%emt 00:00:16] [%clk 00:02:37]} e5 {[%emt 00:00:12] [%clk 00:01:45]} 15. Bc3
{[%emt 00:00:02] [%clk 00:02:38]} f6 {[%emt 00:00:01] [%clk 00:01:46]} 16. f4
{[%emt 00:00:08] [%clk 00:02:32]} exf4 {[%emt 00:00:06] [%clk 00:01:42]} 17.
Rxf4 {[%emt 00:00:01] [%clk 00:02:32]} Bd6 {[%emt 00:00:02] [%clk 00:01:43]} 18.
Re4 {[%emt 00:00:57] [%clk 00:01:36]} Bc7 {[%emt 00:00:08] [%clk 00:01:38]} 19.
Qf3 {[%emt 00:00:05] [%clk 00:01:32]} Rfe8 {[%emt 00:00:23] [%clk 00:01:18]} 20.
Rae1 {[%clk 00:01:33]} Rxe4 {[%emt 00:00:02] [%clk 00:01:18]} 21. Qxe4 {[%emt
00:00:10] [%clk 00:01:24]} Qd5 {[%emt 00:00:04] [%clk 00:01:16]} 22. Qxd5+
{[%emt 00:00:30] [%clk 00:00:56]} Rxd5 {[%clk 00:01:17]} 23. Ne3 {[%emt
00:00:18] [%clk 00:00:41]} Rd7 {[%emt 00:00:07] [%clk 00:01:12]} 24. Nc4 {[%emt
00:00:02] [%clk 00:00:41]} h5 {[%emt 00:00:05] [%clk 00:01:08]} 25. g3 {[%emt
00:00:02] [%clk 00:00:41]} Kf7 {[%emt 00:00:02] [%clk 00:01:09]} 26. Kf2 {[%emt
00:00:03] [%clk 00:00:40]} Re7 {[%emt 00:00:09] [%clk 00:01:02]} 27. Ra1 {[%emt
00:00:19] [%clk 00:00:23]} g6 {[%emt 00:00:08] [%clk 00:00:55]} 28. Ra3 {[%clk
00:00:25]} Ke6 {[%emt 00:00:14] [%clk 00:00:43]} 29. Rb3 {[%clk 00:00:26]} Bd8
{[%clk 00:00:44]} 30. Ra3 {[%emt 00:00:13] [%clk 00:00:15]} f5 {[%emt 00:00:03]
[%clk 00:00:44]} 31. Ra1 {[%clk 00:00:16]} Bc7 {[%emt 00:00:18] [%clk 00:00:28]}
32. h4 {[%emt 00:00:09] [%clk 00:00:08]} Kf7 {[%emt 00:00:03] [%clk 00:00:27]}
33. Kf3 {[%emt 00:00:02] [%clk 00:00:09]} Re6 {[%emt 00:00:09] [%clk 00:00:20]}
34. Ra3 {[%emt 00:00:01] [%clk 00:00:10]} Re7 {[%emt 00:00:02] [%clk 00:00:19]}
35. Rb3 {[%clk 00:00:12]} Bb8 {[%clk 00:00:20]} 36. Nb6 {[%emt 00:00:05] [%clk
00:00:09]} Ke6 {[%emt 00:00:07] [%clk 00:00:15]} 37. Ra3 {[%emt 00:00:06] [%clk
00:00:06]} Bc7 {[%clk 00:00:15]} 38. Nc4 {[%clk 00:00:07]} Kd7 {[%clk 00:00:16]}
39. Ra1 {[%clk 00:00:08]} Nd4+ {[%emt 00:00:03] [%clk 00:00:15]} 40. Bxd4 {[%emt
00:00:01] [%clk 00:00:09]} cxd4 {[%clk 00:00:16]} 41. Ra3 {[%emt 00:00:06] [%clk
00:00:05]} Kc6 {[%emt 00:00:02] [%clk 00:00:16]} 42. Ra1 {[%emt 00:00:02] [%clk
00:00:06]} Re6 {[%emt 00:00:02] [%clk 00:00:15]} 43. Rd1 {[%emt 00:00:03] [%clk
00:00:05]} Kb5 {[%emt 00:00:05] [%clk 00:00:12]} 44. Ra1 {[%emt 00:00:01] [%clk
00:00:05]} Bd6 {[%emt 00:00:08] [%clk 00:00:07]} 45. Rd1 {[%emt 00:00:02] [%clk
00:00:05]} Bb4 {[%emt 00:00:02] [%clk 00:00:08]} 46. Rf1 {[%emt 00:00:03] [%clk
00:00:04]} Bxa5 {[%emt 00:00:02] [%clk 00:00:07]} 47. Kf4 {[%emt 00:00:02] [%clk
00:00:03]} Bc7+ {[%emt 00:00:01] [%clk 00:00:08]} 48. Kf3 {[%emt 00:00:01] [%clk
00:00:04]} Kc6 {[%clk 00:00:10]} 49. Na3 {[%emt 00:00:01] [%clk 00:00:05]} b5
{[%clk 00:00:11]} 50. Nb1 {[%emt 00:00:01] [%clk 00:00:07]} Re3+ {[%clk
00:00:12]} 51. Kf2 {[%emt 00:00:02] [%clk 00:00:07]} Bxg3+ {[%clk 00:00:13]} 52.
Kg2 {[%emt 00:00:01] [%clk 00:00:08]} Bxh4 {[%clk 00:00:14]} 0-1

[Site "Europe Echecs"]